[Event "DVM U12w 2023"]
[Site "Magdeburg"]
[Date "2023.12.30"]
[Round "7"]
[White "Gelbach, Amelia"]
[Black "Schmegel, Alina"]
[Result "1-0"]
[WhiteElo "841"]
[BlackElo "892"]
[PlyCount "137"]
[EventDate "2022.12.27"]
[EventType "team-tourn"]
[EventRounds "7"]
[EventCountry "GER"]
[TimeControl "40/5400+30:1800+30"]
[WhiteClock "1:19:25"]
[BlackClock "1:17:51"]

1. e4 {[%emt 0:00:02]} e5 {[%emt 0:00:04]} 2. Nf3 {[%emt 0:00:09]} Nc6 {[%emt 0:00:06]} 3. Nc3 {[%emt 0:00:48]} Nf6 {[%emt 0:00:09]} 4. d4 {[%emt 0:01:00]} d6 {[%emt 0:01:50]} 5. Bg5 {[%emt 0:01:06]} h6 {[%emt 0:00:32]} 6. Bh4 {[%emt 0:01:05]} Bg4 {[%emt 0:00:14]} 7. Be2 {[%emt 0:01:09]} Be7 {[%emt 0:00:44]} 8. h3 {[%emt 0:00:37]} Bh5 {[%emt 0:00:09]} 9. Qd2 {[%emt 0:00:21]} d5 {[%emt 0:01:36]} 10. exd5 {[%emt 0:03:04]} Nxd5 {[%emt 0:00:19]} 11. dxe5 {[%emt 0:00:36]} Nxc3 {[%emt 0:00:52]} 12. Qxd8+ {[%emt 0:00:30]} Nxd8 {[%emt 0:00:51]} 13. bxc3 {[%emt 0:00:11]} Bxh4 {[%emt 0:01:21]} 14. Nxh4 {[%emt 0:00:12]} Bxe2 {[%emt 0:00:09]} 15. Kxe2 {[%emt 0:00:23]} O-O {[%emt 0:00:13]} 16. Rhe1 {[%emt 0:00:10]} Re8 {[%emt 0:00:20]} 17. Kf1 {[%emt 0:00:36]} Nc6 {[%emt 0:00:08]} 18. Nf3 {[%emt 0:00:19]} Rad8 {[%emt 0:00:10]} 19. Rab1 {[%emt 0:01:25]} b6 {[%emt 0:00:11]} 20. Re2 {[%emt 0:01:43]} a5 {[%emt 0:01:43]} 21. Rbe1 {[%emt 0:00:41]} b5 {[%emt 0:00:35]} 22. a3 {[%emt 0:01:09]} b4 {[%emt 0:00:24]} 23. cxb4 {[%emt 0:00:12]} axb4 {[%emt 0:00:05]} 24. axb4 {[%emt 0:00:13]} Nxb4 {[%emt 0:00:09]} 25. c3 {[%emt 0:00:15]} Nd5 {[%emt 0:00:20]} 26. c4 {[%emt 0:00:42]} Nc3 {[%emt 0:00:53]} 27. Rc2 {[%emt 0:00:42]} Na4 {[%emt 0:00:21]} 28. c5 {[%emt 0:00:41]} Re7 {[%emt 0:06:08]} 29. Ra1 {[%emt 0:00:14]} Red7 {[%emt 0:00:24]} 30. Rxa4 {[%emt 0:00:34]} Rd1+ {[%emt 0:00:08]} 31. Ne1 {[%emt 0:01:01]} Re8 {[%emt 0:00:24]} 32. Re2 {[%emt 0:00:51]} c6 {[%emt 0:01:38]} 33. g3 {[%emt 0:00:13]} Red8 {[%emt 0:01:02]} 34. Ra6 {[%emt 0:00:46]} Rc8 {[%emt 0:03:03]} 35. Kg2 {[%emt 0:02:16]} Rc1 {[%emt 0:00:57]} 36. Nd3 {[%emt 0:00:24]} Rc3 {[%emt 0:00:19]} 37. Nb4 {[%emt 0:00:57]} Rxc5 {[%emt 0:00:12]} 38. e6 {[%emt 0:00:22]} Rb8 {[%emt 0:00:58]} 39. exf7+ {[%emt 0:00:46]} Kxf7 {[%emt 0:00:13]} 40. Nxc6 {[%emt 0:00:58]} g5 {[%emt 0:01:34]} 41. Nxb8 {[%emt 0:30:12]} h5 {[%emt 0:30:19]} 42. Ra7+ {[%emt 0:00:35]} Kg6 {[%emt 0:00:09]} 43. g4 {[%emt 0:00:29]} Rc4 {[%emt 0:01:19]} 44. gxh5+ {[%emt 0:00:16]} Kxh5 {[%emt 0:00:14]} 45. f3 {[%emt 0:01:01]} Rf4 {[%emt 0:01:36]} 46. Re4 {[%emt 0:00:15]} Rf6 {[%emt 0:00:49]} 47. Nd7 {[%emt 0:00:21]} Rf7 {[%emt 0:00:18]} 48. Kg3 {[%emt 0:01:04]} Rg7 {[%emt 0:01:21]} 49. Nf6+ {[%emt 0:00:52]} Kh6 {[%emt 0:00:24]} 50. Rxg7 {[%emt 0:00:08]} Kxg7 {[%emt 0:00:07]} 51. Ne8+ {[%emt 0:00:14]} Kg6 {[%emt 0:00:21]} 52. Re6+ {[%emt 0:00:38]} Kh7 {[%emt 0:00:21]} 53. Nf6+ {[%emt 0:00:39]} Kh8 {[%emt 0:01:03]} 54. h4 {[%emt 0:03:19]} gxh4+ {[%emt 0:00:31]} 55. Kxh4 {[%emt 0:00:07]} Kg7 {[%emt 0:00:15]} 56. Nd5 {[%emt 0:01:45]} Kh7 {[%emt 0:00:34]} 57. Kg5 {[%emt 0:00:50]} Kg8 {[%emt 0:00:24]} 58. Kh6 {[%emt 0:00:27]} Kf7 {[%emt 0:01:06]} 59. Ra6 {[%emt 0:00:13]} Ke8 {[%emt 0:00:17]} 60. Ra7 {[%emt 0:00:19]} Kd8 {[%emt 0:01:19]} 61. Kg7 {[%emt 0:00:26]} Kc8 {[%emt 0:00:31]} 62. Rf7 {[%emt 0:00:21]} Kb8 {[%emt 0:00:13]} 63. Kf6 {[%emt 0:00:41]} Kc8 {[%emt 0:00:34]} 64. Ke6 {[%emt 0:00:18]} Kb8 {[%emt 0:00:25]} 65. Kd6 {[%emt 0:00:09]} Kc8 {[%emt 0:00:16]} 66. Rg7 {[%emt 0:00:10]} Kb8 {[%emt 0:00:09]} 67. Kc6 {[%emt 0:00:08]} Ka8 {[%emt 0:00:09]} 68. Kb6 {[%emt 0:00:07]} Kb8 {[%emt 0:00:07]} 69. Rg8# {[%emt 0:00:08] normal} 1-0

[Event "DVM U12w 2023"]
[Site "Magdeburg"]
[Date "2023.12.30"]
[Round "7"]
[White "Strahl, Nele"]
[Black "Gelbach, Julietta"]
[Result "1-0"]
[WhiteElo "783"]
[BlackElo "887"]
[PlyCount "41"]
[EventDate "2022.12.27"]
[EventType "team-tourn"]
[EventRounds "7"]
[EventCountry "GER"]
[TimeControl "40/5400+30:1800+30"]
[WhiteClock "1:22:41"]
[BlackClock "1:25:48"]

1. e4 {[%emt 0:00:04]} e5 {[%emt 0:00:00]} 2. Nf3 {[%emt 0:00:05]} Nc6 {[%emt 0:00:00]} 3. Nc3 {[%emt 0:00:05]} Bc5 {[%emt 0:00:00]} 4. Bc4 {[%emt 0:00:07]} Nf6 {[%emt 0:00:05]} 5. O-O {[%emt 0:00:08]} d6 {[%emt 0:00:32]} 6. Re1 {[%emt 0:00:15]} Bg4 {[%emt 0:00:54]} 7. Be2 {[%emt 0:00:49]} h6 {[%emt 0:00:56]} 8. d3 {[%emt 0:02:13]} Qd7 {[%emt 0:00:19]} 9. Be3 {[%emt 0:01:13]} Bxe3 {[%emt 0:00:29]} 10. fxe3 {[%emt 0:00:11]} O-O-O {[%emt 0:00:27]} 11. d4 {[%emt 0:01:58]} exd4 {[%emt 0:01:26]} 12. Nxd4 {[%emt 0:00:59]} Bxe2 {[%emt 0:00:27]} 13. Qxe2 {[%emt 0:00:40]} Nxd4 {[%emt 0:00:46]} 14. exd4 {[%emt 0:00:20]} a6 {[%emt 0:00:49]} 15. a4 {[%emt 0:00:30]} Rhe8 {[%emt 0:00:31]} 16. Red1 {[%emt 0:01:11]} d5 {[%emt 0:01:13]} 17. e5 {[%emt 0:00:34]} Qc6 {[%emt 0:02:00]} 18. Qf3 {[%emt 0:03:10]} Ne4 {[%emt 0:01:25]} 19. Qg4+ {[%emt 0:02:08]} Rd7 {[%emt 0:01:11]} 20. Nb5 {[%emt 0:01:15]} axb5 {[%emt 0:01:12]} 21. axb5 {[%emt 0:00:24] normal} 1-0

[Event "DVM U12w 2023"]
[Site "Magdeburg"]
[Date "2023.12.30"]
[Round "7"]
[White "Sauermann, Paula"]
[Black "Piffczyk, Sandra"]
[Result "0-1"]
[WhiteElo "754"]
[BlackElo "1105"]
[PlyCount "134"]
[EventDate "2022.12.27"]
[EventType "team-tourn"]
[EventRounds "7"]
[EventCountry "GER"]
[TimeControl "40/5400+30:1800+30"]
[WhiteClock "0:36:20"]
[BlackClock "0:50:49"]

1. e4 {[%emt 0:00:02]} e5 {[%emt 0:00:07]} 2. d4 {[%emt 0:00:09]} exd4 {[%emt 0:00:11]} 3. c3 {[%emt 0:00:09]} Nf6 {[%emt 0:00:41]} 4. cxd4 {[%emt 0:00:32]} Nc6 {[%emt 0:00:46]} 5. Nc3 {[%emt 0:01:19]} Bb4 {[%emt 0:00:28]} 6. Bc4 {[%emt 0:02:00]} O-O {[%emt 0:02:35]} 7. Bd2 {[%emt 0:02:33]} Nxd4 {[%emt 0:03:21]} 8. a3 {[%emt 0:02:19]} Ba5 {[%emt 0:01:48]} 9. b4 {[%emt 0:04:48]} Bb6 {[%emt 0:00:32]} 10. Nge2 {[%emt 0:02:47]} Nxe2 {[%emt 0:01:28]} 11. Qxe2 {[%emt 0:00:50]} d6 {[%emt 0:01:40]} 12. O-O {[%emt 0:08:54]} Bg4 {[%emt 0:02:50]} 13. Qe1 {[%emt 0:01:29]} Qe7 {[%emt 0:02:45]} 14. Be2 {[%emt 0:03:34]} Bxe2 {[%emt 0:01:43]} 15. Qxe2 {[%emt 0:00:31]} Rfe8 {[%emt 0:01:12]} 16. Rae1 {[%emt 0:02:29]} Rad8 {[%emt 0:04:53]} 17. Bg5 {[%emt 0:02:12]} Qe5 {[%emt 0:04:23]} 18. Be3 {[%emt 0:04:42]} Qxc3 {[%emt 0:01:35]} 19. Bxb6 {[%emt 0:03:51]} axb6 {[%emt 0:00:35]} 20. h3 {[%emt 0:07:09]} Qxa3 {[%emt 0:03:19]} 21. e5 {[%emt 0:00:52]} dxe5 {[%emt 0:01:47]} 22. Rd1 {[%emt 0:07:28]} Rxd1 {[%emt 0:00:50]} 23. Rxd1 {[%emt 0:00:10]} Qxb4 {[%emt 0:01:13]} 24. Qf3 {[%emt 0:05:16]} Rb8 {[%emt 0:01:54]} 25. Qf5 {[%emt 0:04:23]} h6 {[%emt 0:05:12]} 26. Qxe5 {[%emt 0:01:00]} Re8 {[%emt 0:07:47]} 27. Qxc7 {[%emt 0:00:44]} Re1+ {[%emt 0:03:08]} 28. Rxe1 {[%emt 0:00:29]} Qxe1+ {[%emt 0:00:16]} 29. Kh2 {[%emt 0:00:12]} Qe4 {[%emt 0:00:44]} 30. Qxb6 {[%emt 0:00:58]} Qc6 {[%emt 0:00:43]} 31. Qd8+ {[%emt 0:01:13]} Kh7 {[%emt 0:00:21]} 32. Qd3+ {[%emt 0:00:41]} g6 {[%emt 0:00:44]} 33. Qb3 {[%emt 0:01:19]} Kg7 {[%emt 0:00:13]} 34. Qb2 {[%emt 0:00:51]} b5 {[%emt 0:00:10]} 35. g4 {[%emt 0:00:25]} Qc4 {[%emt 0:02:11]} 36. h4 {[%emt 0:00:58]} Qxg4 {[%emt 0:01:50]} 37. Qxb5 {[%emt 0:00:18]} Qxh4+ {[%emt 0:00:34]} 38. Kg2 {[%emt 0:00:23]} Qg5+ {[%emt 0:00:07]} 39. Qxg5 {[%emt 0:00:18]} hxg5 {[%emt 0:00:07]} 40. Kg3 {[%emt 0:00:38]} Kh6 {[%emt 0:00:09]} 41. f4 {[%emt 0:30:25]} gxf4+ {[%emt 0:30:11]} 42. Kxf4 {[%emt 0:00:11]} Nh7 {[%emt 0:00:27]} 43. Kg4 {[%emt 0:00:29]} f6 {[%emt 0:00:12]} 44. Kh4 {[%emt 0:00:19]} f5 {[%emt 0:00:11]} 45. Kg3 {[%emt 0:00:15]} g5 {[%emt 0:00:28]} 46. Kf3 {[%emt 0:00:20]} Kh5 {[%emt 0:00:05]} 47. Kg3 {[%emt 0:00:13]} f4+ {[%emt 0:00:17]} 48. Kf3 {[%emt 0:00:09]} Kh4 {[%emt 0:00:08]} 49. Kf2 {[%emt 0:00:26]} g4 {[%emt 0:00:10]} 50. Kg2 {[%emt 0:00:10]} f3+ {[%emt 0:00:10]} 51. Kf2 {[%emt 0:00:10]} Kh3 {[%emt 0:00:07]} 52. Kf1 {[%emt 0:00:11]} Kh2 {[%emt 0:00:20]} 53. Kf2 {[%emt 0:00:13]} g3+ {[%emt 0:00:05]} 54. Kxf3 {[%emt 0:00:16]} g2 {[%emt 0:00:08]} 55. Kf4 {[%emt 0:00:10]} g1=Q {[%emt 0:00:11]} 56. Kf5 {[%emt 0:00:11]} Qd4 {[%emt 0:00:13]} 57. Kg6 {[%emt 0:00:20]} Qe5 {[%emt 0:00:09]} 58. Kxh7 {[%emt 0:00:13]} Qe6 {[%emt 0:00:30]} 59. Kg7 {[%emt 0:00:13]} Qa6 {[%emt 0:00:06]} 60. Kf7 {[%emt 0:00:23]} Kg3 {[%emt 0:00:07]} 61. Ke7 {[%emt 0:00:12]} Kf4 {[%emt 0:00:14]} 62. Kd7 {[%emt 0:00:09]} Ke5 {[%emt 0:00:07]} 63. Kc7 {[%emt 0:00:18]} Qg6 {[%emt 0:00:31]} 64. Kd7 {[%emt 0:00:14]} Qh6 {[%emt 0:00:18]} 65. Ke7 {[%emt 0:00:13]} Qh7+ {[%emt 0:00:13]} 66. Ke8 {[%emt 0:00:12]} Ke6 {[%emt 0:00:11]} 67. Kd8 {[%emt 0:00:10]} Qd7# {[%emt 0:01:18] normal} 0-1